Cogmind - Beta 14 @@@ ROGUE MODE // 2024.09.25 @ 00:03:22 // Winter2022/Polymind Player: AnotherZach Result: Destroyed by YJ-9ZQ(R) with Subdweller Machine Gun Performance ------------- Evolutions (0) 0 Regions Visited (3) 600 Robots Destroyed (2) 10 Value Destroyed (47) 47 Prototype IDs (0) 0 Alien Tech Used (0) 0 Bonus (1115) 1115 TOTAL SCORE: 1392 Bonus ------- Polymind Skill 1115 Cogmind --------- Core Integrity 0/250 Matter 0/0 Energy 25/100 System Corruption 0% Temperature Cool (0) Movement Core (50) Location -10/Subcaves Parts ------- > --- POWER (1) -------- (None) > --- PROPULSION (1) --- (None) > --- UTILITY (4) ------ (None) > --- WEAPON (1) ------- (None) > --- INVENTORY (0) ---- (None) Peak State ------------ > --- POWER ------------ Subdweller Power Source > --- PROPULSION ------- Subdweller Monowheel > --- UTILITY ---------- Disposable Heat Sink Subdweller Optics Scrap Shield > --- WEAPON ----------- Subdweller Machine Gun > --- INVENTORY -------- (None) [Rating: 14] Favorites ----------- Power Light Ion Engine Engine Light Ion Engine Propulsion Wheel Wheel Wheel Utility Improved Terrain Scanner Device Improved Terrain Scanner Protection Scrap Shield Weapon Mining Laser Ballistic Gun Subdweller Machine Gun Special Weapon Mining Laser Build | -11 -10 -10 -10 ------- Run | Yrd Mat Min Sub Slots Evolved . | . . . . Power . | . . . . Propulsion . | . . . . Utility . | . . . . Weapon . | . . . . Parts Attached . | . . . . Power . | . . . . Engine . | . . . . Core . | . . . . Reactor . | . . . . Propulsion . | . . . . Treads . | . . . . Leg . | . . . . Wheel . | . . . . Hover . | . . . . Flight . | . . . . Utility . | . . . . Device . | . . . . Storage . | . . . . Processor . | . . . . Hackware . | . . . . Protection . | . . . . Artifact . | . . . . Weapon . | . . . . Energy Gun . | . . . . Energy Cannon . | . . . . Ballistic Gun . | . . . . Ballistic Cannon . | . . . . Launcher . | . . . . Special Weapon . | . . . . Impact Weapon . | . . . . Slashing Weapon . | . . . . Piercing Weapon . | . . . . Special Melee Weapon . | . . . . Unidentified Prototypes . | . . . . Parts Lost 1 | . . . 1 Power . | . . . . Propulsion . | . . . . Utility 1 | . . . 1 Weapon . | . . . . Highest Loss Streak 1 | . . . 1 To Critical Strikes . | . . . . Average Slot Usage (%) 91 | . 92 20 97 Engine 14 | . 14 3 15 Wheel 28 | . 30 6 29 Device 30 | . 30 6 32 Protection 2 | . . . 2 Ballistic Gun 2 | . . . 2 Special Weapon 12 | . 14 3 12 Peak Build Rating 14 | 8 8 8 14 Average Rating 8 | 2 7 1 9 On Entrance 4 | . 8 . 8 Naked Turns 55 | . 16 34 5 Heaviest Build 30 | 6 6 6 30 Greatest Support 20 | 20 20 20 20 Greatest Overweight (x) 1 | . . . 1 Average Overweight (x) . | . . . . Largest Inventory Capacity 2 | . . . 2 Average Capacity . | . . . . Most Carried 2 | . . . 2 Average Carried . | . . . . Final Capacity . | . . . . Final Carried . | . . . . Class Distribution -------------------- 77% | Tunneler 15% | Subdweller 6% | Cogmind Dominant Class ---------------- Tunneler | -10/Materials Cogmind | -10/Mines Tunneler | -10/Subcaves Resources | -11 -10 -10 -10 ----------- Run | Yrd Mat Min Sub Matter Collected 2 | . . . 2 Remotely . | . . . . Salvage Created . | . . . . Parts 4 | . 1 . 3 Haulers Intercepted . | . . . . Recyclers Shooed . | . . . . Parts Field Recycled . | . . . . Retrieved Matter . | . . . . Parts Self-Destructed 14 | . . . 14 Prevented . | . . . . Kills | -11 -10 -10 -10 ------- Run | Yrd Mat Min Sub Combat Hostiles Destroyed 1 | . . . 1 Guns 1 | . . . 1 Classes Destroyed 2 | . 1 . 1 Tunneler 1 | . 1 . . Subdweller 1 | . . . 1 Best Kill Streak 1 | . 1 . 1 Combat Bots Only 1 | . . . 1 Max Kills in Single Turn 1 | . 1 . 1 Gunslinging . | . . . . Exploded . | . . . . Melee . | . . . . Uniques/NPCs Destroyed . | . . . . Combat | -11 -10 -10 -10 -------- Run | Yrd Mat Min Sub Hostile Shots Fired 35 | . . . 35 Missed 10 | . . . 10 Damage Taken 591 | . . . 591 Core 256 | . . . 256 Absorbed by Shields . | . . . . Core Remaining (%) 100 | 100 . . . Volleys Fired 11 | . 1 . 10 Largest 1 | . 1 . 1 Hottest 100 | . 100 . 100 Shots Fired 11 | . 1 . 10 Gun 8 | . . . 8 Cannon . | . . . . Launcher . | . . . . Special 3 | . 1 . 2 Kinetic 8 | . . . 8 Thermal 3 | . 1 . 2 Explosive . | . . . . Electromagnetic . | . . . . Robot Hit Streak 2 | . 1 . 2 Robot Miss Streak 1 | . . . 1 Penetration Max . | . . . . Secondary Targets . | . . . . Shots Hit Robots 4 | . 1 . 3 Core Hits 2 | . 1 . 1 Critical Kills . | . . . . Critical Parts Destroyed . | . . . . Critical Strikes . | . . . . Melee Attacks . | . . . . Impact . | . . . . Slashing . | . . . . Piercing . | . . . . Sneak Attacks . | . . . . Combat Hostiles . | . . . . Follow-up Attacks . | . . . . Damage Inflicted 86 | . 26 . 60 Guns 60 | . . . 60 Cannons . | . . . . Explosions . | . . . . Melee . | . . . . Ramming . | . . . . Kinetic 60 | . . . 60 Thermal 26 | . 26 . . Explosive . | . . . . Electromagnetic . | . . . . Impact . | . . . . Slashing . | . . . . Piercing . | . . . . Highest Corruption . | . . . . Average Corruption . | . . . . Corruption Purged . | . . . . Corruption Blocked . | . . . . Overload Shots . | . . . . Overflow Damage . | . . . . Projectiles . | . . . . Explosions . | . . . . Melee . | . . . . Knockbacks . | . . . . Impact . | . . . . Kinetic . | . . . . Secondary . | . . . . Self-Inflicted Damage . | . . . . Shots . | . . . . Rammed . | . . . . Targets Rammed . | . . . . Kicked . | . . . . Crushed . | . . . . Highest Temperature 80 | . 80 . 1 Average Temperature 40 | . 42 . 1 Received Heat Transfer 72 | . . . 72 Siege Activations . | . . . . Robots Corrupted . | . . . . Combat Hostiles . | . . . . Parts Fried . | . . . . Impact Corruptions . | . . . . Robots Melted . | . . . . Combat Hostiles . | . . . . Parts Melted . | . . . . Heat Transferred 50 | . 50 . . Parts Sabotaged . | . . . . Parts Stolen . | . . . . Parts Stripped . | . . . . Power Chain Reactions . | . . . . Alert | -11 -10 -10 -10 ------- Run | Yrd Mat Min Sub Peak Influence 72 | . 72 27 . Initial 27 | . . 27 . Average 23 | . 24 26 . Maximum Alert Level . | . . . . Low Security (%) 100 | 100 100 100 . Level 1 . | . . . . Level 2 . | . . . . Level 3 . | . . . . Level 4 . | . . . . Level 5 . | . . . . High Security . | . . . . Max Security . | . . . . Squads Dispatched 1 | . 1 . . Investigation 1 | . 1 . . Extermination . | . . . . Reinforcement . | . . . . Assault . | . . . . Garrison . | . . . . Intercept . | . . . . Searches Triggered . | . . . . Construction Impeded . | . . . . Haulers Reinforced . | . . . . Active Scanning Responses . | . . . . Cargo Convoy Interrupts . | . . . . Stealth | -11 -10 -10 -10 --------- Run | Yrd Mat Min Sub Distress Signals . | . . . . Communications Jammed . | . . . . Distress Signals . | . . . . Times Spotted 14 | . 1 . 13 Peak Tracking Total 6 | . 1 . 6 Tactical Retreats 1 | . . . 1 Traps | -11 -10 -10 -10 ------- Run | Yrd Mat Min Sub Traps Triggered 1 | . 1 . . Indirectly . | . . . . Trap Hack Attempts . | . . . . Triggered . | . . . . Disarmed . | . . . . Reprogrammed . | . . . . Reused . | . . . . Traps Extracted . | . . . . Installed . | . . . . Triggered 1 | . . . 1 Machines | -11 -10 -10 -10 ---------- Run | Yrd Mat Min Sub Machines Disabled . | . . . . Max in Single Turn . | . . . . Machines Repaired . | . . . . Machines Dismantled . | . . . . Machines Sabotaged . | . . . . Overloaded Fab Kills . | . . . . Hacking | -11 -10 -10 -10 --------- Run | Yrd Mat Min Sub Machines Accessed 3 | . 3 . . Terminals 3 | . 3 . . Fabricators . | . . . . Repair Stations . | . . . . Recycling Units . | . . . . Scanalyzers . | . . . . Garrison Access . | . . . . Total Hacks 6 | . 6 . . Successful 1 | . 1 . . Failed 5 | . 5 . . Catastrophic 2 | . 2 . . Database Lockouts . | . . . . Manual 7 | . 7 . . Terminals 6 | . 6 . . Fabricators . | . . . . Repair Stations . | . . . . Recycling Units . | . . . . Scanalyzers . | . . . . Garrison Access . | . . . . Terminal Hacks 1 | . 1 . . Robot Schematic 1 | . 1 . . Fabricator Hacks . | . . . . Repair Station Hacks . | . . . . Recycling Unit Hacks . | . . . . Scanalyzer . | . . . . Garrison Access Hacks . | . . . . Unauthorized Hacks . | . . . . Terminals . | . . . . Fabricators . | . . . . Repair Stations . | . . . . Recycling Units . | . . . . Scanalyzers . | . . . . Garrison Access . | . . . . Data Cores Recovered . | . . . . Used . | . . . . Hacking Detections 2 | . 2 . . Full Trace Events 1 | . 1 . . Feedback Events . | . . . . Feedback Blocked . | . . . . Robot Schematics Acquired 1 | . 1 . . Robots Built . | . . . . Authchips . | . . . . Time . | . . . . Total Robot Build Rating . | . . . . Part Schematics Acquired . | . . . . Parts Built . | . . . . Authchips . | . . . . Time . | . . . . Total Part Build Rating . | . . . . Parts Repaired . | . . . . Time . | . . . . Parts Recycled . | . . . . Recycled Matter . | . . . . Retrieved Matter . | . . . . Retrieved Components . | . . . . Parts Scanalyzed . | . . . . Part Schematics Acquired . | . . . . Parts Damaged . | . . . . Bothacking | -11 -10 -10 -10 ------------ Run | Yrd Mat Min Sub Used RIF Installer . | . . . . Robots Hacked . | . . . . Non-combat . | . . . . Combat . | . . . . Robot Hacks Applied . | . . . . Relay Couplers Released . | . . . . Fabnet Peak Effective % . | . . . . Robots Rewired . | . . . . Allies Hacked . | . . . . Hacks Repelled . | . . . . Allies | -11 -10 -10 -10 -------- Run | Yrd Mat Min Sub Total Allies . | . . . . Largest Group . | . . . . Highest-Rated Group . | . . . . Highest-Rated Ally . | . . . . Total Orders . | . . . . Ally Attacks . | . . . . Total Damage . | . . . . Kills . | . . . . Allies Corrupted . | . . . . Allies Melted . | . . . . Intel | -11 -10 -10 -10 ------- Run | Yrd Mat Min Sub Robot Analysis Total 2 | 1 . . 1 Derelict Logs Recovered 2 | . . . 2 Drone Launches . | . . . . Drone Recoveries . | . . . . Exploration | -11 -10 -10 -10 ------------- Run | Yrd Mat Min Sub Turns Passed 845 | 13 132 45 655 Spaces Moved 828 | 24 166 74 564 Core 128 | 18 33 67 10 Treads . | . . . . Legs . | . . . . Wheels 700 | 6 133 7 554 Hover . | . . . . Flight . | . . . . Fastest Speed 50 | 50 50 50 50 Average Speed 79 | 57 74 52 86 Slowest Speed 120 | 80 80 80 120 Overloaded Moves . | . . . . Propulsion Burnouts . | . . . . Robots Hopped . | . . . . Cave-ins Triggered . | . . . . Exploration Rate (%) 23 | 3 39 13 38 Regions Visited 3 Branch Regions 2 Pre-discovered Areas 1 | . . . 1 Known Exits Taken . | . . . . Unknown Exits Taken 3 | 1 1 1 . Scrap Searched 2 | . . . 2 Spaces Dug . | . . . . Terrain Destroyed . | . . . . Melee . | . . . . Projectile . | . . . . AOE . | . . . . Terrain Rammed . | . . . . Walls Destroyed . | . . . . Machines Disabled . | . . . . Actions | -11 -10 -10 -10 --------- Run | Yrd Mat Min Sub Total 993 | 23 171 79 720 Wait 142 | . . . 142 Move 825 | 23 165 73 564 Hop . | . . . . Pick Up 2 | . . . 2 Fast Attach . | . . . . Attach . | . . . . Detach . | . . . . Swap . | . . . . Drop 1 | . . . 1 Fire 11 | . 1 . 10 Melee . | . . . . Ram . | . . . . Kick . | . . . . Crush . | . . . . Escape Stasis . | . . . . Rewire . | . . . . Trap . | . . . . Miscellaneous 12 | . 5 6 1 Route ------- -11/Scrapyard -10/Materials -10/Mines -10/Subcaves (discovered 3 exits: *Mat x2 / [*Rec]) History --------- Turn | Location | Event 5 | -11/Scrapyard | Discovered new exit (range 13) 14 | -11/Scrapyard | Entered Materials 135 | -10/Materials | Discovered new exit (range 11) 146 | -10/Materials | Entered Mines 188 | -10/Mines | Discovered new exit (range 3) 191 | -10/Mines | Entered Subcaves 191 | -10/Subcaves | Learned location of Zion (-6) 194 | -10/Subcaves | Identified exit to Materials 619 | -10/Subcaves | A swath of the cavern ceiling suddenly collapsed 643 | -10/Subcaves | A swath of the cavern ceiling suddenly collapsed 708 | -10/Subcaves | Disturbed a concealed Subdweller 774 | -10/Subcaves | Discovered exit to Materials (range 5) 844 | -10/Subcaves | Discovered new exit (range 13) 845 | -10/Subcaves | Core integrity fell below 50% 846 | -10/Subcaves | Destroyed by YJ-9ZQ(R) with Subdweller Machine Gun Last Messages --------------- 00723_ Subatomizers dissect the Battle Cannon. 00739_ T-07 Excavator is excavating. 00752_ QG-7JP(R) destroyed. 00758_ Destroyed Wheel. 00760_ Acquired 23 Protomatter. 00762_ Acquired Scrap Shield Fragment. 00766_ Scrap Shield Fragment affixed to Scrap Shield (+45). 00773_ Extracted 1 energy. 00774_ EXIT=FOUND: MATERIALS 00831_ S-10 Pest springs to life. 00838_ S-10 Pest destroyed. 00841_ Dropped Scrap Shield Fragment. 00841_ Scrap Shield destroyed. 00841_ Released control of YJ-9ZQ(R). 00842_ Flight Unit fries itself beyond repair. 00842_ YJ-9ZQ(R) reactivates. 00844_ Acquired 4 Protomatter. 00844_ EXIT=FOUND 00846_ Machine disabled. Map ----- +----------------------------------------------------+ | ????????????????##????# # #????# #? | | ????????????????#?????# #### #???# #? | | ??????????????????????##!! ### #???# #? | | ?????????????????????## < ### # #???# #? | | ?????????????????????# ## # #???# #? | | ?????????????????????# # ##???#### ##? | | ?????????????????????#### # ##????????##?? | | ???????????#????#???????## # ##" #????????????? | | ?????????????????????????# ####?"""#????????????? | | ?????????????????????????# ######"##????????????? | | ?????????????????????????### # ##???????????????? | | ???????????????????????????## #?????##????????? | | ????????????????????????????## ##???# ## "##???? | | ?????????????????????????????## #?## #"" ???? | | ??????????????????????????????## ###""" """ ##??? | | ?????????????????????????###???# """"""" " ##?? | | ?????????????????????#####<###### ## """ " ?? | | ?????????????????????#"""" """"#### "" "### ??? | | ?????????????????????#" " " "#??## " ###???????? | | ?????????????????????#" t t "#???## "#?????????? | | ?????????????????????# #????# "#?????????? | | ???????????????? ???# #??### "##????????? | | ?????????????????# ?# "???# ""#????????? | | ??????????????????# #;;; ;##???## ##????????? | | ?????????????????## ; ###### ##?????????? | | ????????????????## ;@ ; #?????????? | | ???????????????## ; #?????????? | | ????????????# # R #?????????? | | ?????????? ; ##?????????? | | ?????????? [ ;#?????????? | | ????????????### ;#?????????? | | ??????????????# ### R ;;#?????????? | | ??????????????#???# R###?????????? | | ??????????????????## ##### ????????? | | ???????????????????### ##???## ????? | | ?????????????????????# #??????# ## ### ?? | | ?????????????????????####???????#####?###???? ? | | ????????????????????????????????????????????????#? | | ?????????????????????????????????????????????????? | | ?????????????????????????????????????????????????? | | ?????????????????????????????????????????????????? | | ?????????????????????????????????????????????????? | | ?????????????????????????????????????????????????? | | ?????????????????????????????????????????????????? | | ?????????????????????????????????????????????????? | | ?????????????????????????????????????????????????? | | ?????????????????????????????????????????????????? | | ?????????????????????????????????????????????????? | | ?????????????????????????????????????????????????? | | ?????????????????????????????????????????????????? | +----------------------------------------------------+ Best States ------------- Heat Dissipation 25 Coolant Potential 50 Energy Generation 20 Energy Capacity 150 Matter Stores 100 Matter Capacity 100 Sight Range 19 Terrain Scan Range 16 Terrain Scan Density 10 Armor Coverage 800 Evasion (%) 50 Item Schematics ----------------- None Robot Schematics ------------------ M-13 Machinist | -10/Materials | Hacked Fabricated ------------ Nothing Alien Tech Used ----------------- None Achievements -------------- None Challenges ------------ None Polymind | -11 -10 -10 -10 ---------- Run | Yrd Mat Min Sub Hosts 3 | 1 . 1 1 Combat Hostiles 1 | . . . 1 Allies . | . . . . Unique Host Classes 2 | 1 . . 1 Average Host Suspicion 52 | . 47 . 55 Unsuspicious Activity 105 | 2 25 32 46 Returns to Shadow . | . . . . Fuzzy Dispatches . | . . . . Protomatter Created 82 | . . . 82 Used 43 | 5 . 5 33 Decayed 51 | . . . 51 Highest Spend 33 | 5 . 5 33 Top 5 Hosts by Kills: YJ-9ZQ(R) (-10/Subcaves: 1) Game ------ Seed ServoShrapnelShielding Manual? 0 Play Time 00:06:42 Cumulative 745.0 hours Start 2024.09.24 @ 23:56:55 End 2024.09.25 @ 00:03:22 Sessions 1 Manual Loads 0 Difficulty Rogue Special Mode Winter2022/Polymind Game No. 168 Rogue 30 Adventurer 138 Explorer 0 Win Type - Total 13 Types 8/0/1/2/1/0/0/0/1 Lore% 79 Gallery% 84 Achievement% 75 Wizard Run 0 Options --------- Layout 2 ASCII 0 Keyboard 0 Movement Mouse Keybinds 0 Fullscreen 1 Font 24/Smallcaps Map View 50x49 Zoom Use 1% Tactical HUD 1 Map Filters NONE Filters NONE Steam 1 RUN: 06db67f9-c00c-43eb-b9c4-9033b4ed1c7b